{"text_format":"1","workbook":"xlsx","n_sheets":5,"sheets":["Q.1)","Q.2)","Q.3)","Q.4)","Q.5)"],"not_rendered":{"charts":0,"images":0,"macros":1,"external_links":0,"defined_names":0,"comments":0,"pivot_tables":0},"unopened":[],"bounds":{"document_bytes":16777216,"sheet_cells":100000,"rows_first":2000,"rows_last":500,"rows_between":2000,"halvings":0,"cell_chars":16384,"cell_head_chars":4096},"cells_cut":0,"cells_raw":0,"read":"whole","date_system":"1900"}

{"sheet":"Q.1)","index":0,"n_rows":22,"n_cols":3,"rows_kept":22,"cut":false,"hidden":false,"merged":[]}
["Step","Fibonacci \nSeries","Sum of n \nFibonacci \nNumbers"]
[1,{"$f":"Fibonacci(A2)","v":1},1]
[{"$f":"A2+1","v":2},{"$f":"Fibonacci(A3)","v":1},{"$f":"C2+B3","v":2}]
[{"$f":"A3+1","v":3},{"$f":"Fibonacci(A4)","v":2},{"$f":"C3+B4","v":4}]
[4,{"$f":"Fibonacci(A5)","v":3},7]
[5,{"$f":"Fibonacci(A6)","v":5},12]
[6,{"$f":"Fibonacci(A7)","v":8},20]
[7,{"$f":"Fibonacci(A8)","v":13},33]
[8,{"$f":"Fibonacci(A9)","v":21},54]
[9,{"$f":"Fibonacci(A10)","v":34},88]
[10,{"$f":"Fibonacci(A11)","v":55},143]
[11,{"$f":"Fibonacci(A12)","v":89},232]
[12,{"$f":"Fibonacci(A13)","v":144},376]
[13,{"$f":"Fibonacci(A14)","v":233},609]
[14,{"$f":"Fibonacci(A15)","v":377},986]
[15,{"$f":"Fibonacci(A16)","v":610},1596]
[16,{"$f":"Fibonacci(A17)","v":987},2583]
[17,{"$f":"Fibonacci(A18)","v":1597},4180]
[18,{"$f":"Fibonacci(A19)","v":2584},6764]
[19,{"$f":"Fibonacci(A20)","v":4181},10945]
[20,{"$f":"Fibonacci(A21)","v":6765},17710]
[21,{"$f":"Fibonacci(A22)","v":10946},28656]

{"sheet":"Q.2)","index":1,"n_rows":1,"n_cols":1,"rows_kept":1,"cut":false,"hidden":false,"merged":[]}
["check VBA editor"]

{"sheet":"Q.3)","index":2,"n_rows":3,"n_cols":2,"rows_kept":3,"cut":false,"hidden":false,"merged":[]}
[]
[]
[null,"tried to explore, but how do I get the quotient term as that will also be required and mod just give me the remainder"]

{"sheet":"Q.4)","index":3,"n_rows":30,"n_cols":2,"rows_kept":30,"cut":false,"hidden":false,"merged":[]}
[]
[]
[null,"So my logic to get the sum of this question was to"]
[]
[null,"Step 1"]
[null,"if the place of n is odd then"]
[null,"to run a loop from 1 to the place of n with a step of four"]
[null,"so this will add all the value with the plus sign"]
[null,"and the addition of all the values with plus sign will be saved in a odd"]
[]
[null,"to run a loop from 3 to the place of (n-1) with a step of four"]
[null,"so this will add all the value with the minus sign"]
[null,"and the addition of all the values with minus sign will be saved in a even"]
[]
[]
[null,"Step 2"]
[null,"if the place of n is even then"]
[null,"to run a loop from 1 to the place of (n-1) with a step of four"]
[null,"so this will add all the value with the plus sign"]
[null,"and the addition of all the values with plus sign will be saved in a odd"]
[]
[null,"to run a loop from 3 to the place of n with a step of four"]
[null,"so this will add all the value with the minus sign"]
[null,"and the addition of all the values with minus sign will be saved in a even"]
[]
[null,"Step 3"]
[null,"num = odd - even"]
[null,"this will be the final value"]
[]
[null,"But I didn't understood how do I code it, confused."]

{"sheet":"Q.5)","index":4,"n_rows":195,"n_cols":1,"rows_kept":195,"cut":false,"hidden":false,"merged":[]}
["Afghanistan"]
["Albania"]
["Algeria"]
["Andorra"]
["Angola"]
["Antigua and Barbuda"]
["Argentina"]
["Armenia"]
["Australia"]
["Austria"]
["Azerbaijan"]
["Bahamas"]
["Bahrain"]
["Bangladesh"]
["Barbados"]
["Belarus"]
["Belgium"]
["Belize"]
["Benin"]
["Bhutan"]
["Bolivia"]
["Bosnia and Herzegovina"]
["Botswana"]
["Brazil"]
["Brunei"]
["Bulgaria"]
["Burkina Faso"]
["Burundi"]
["Côte d'Ivoire"]
["Cabo Verde"]
["Cambodia"]
["Cameroon"]
["Canada"]
["Central African Republic"]
["Chad"]
["Chile"]
["China"]
["Colombia"]
["Comoros"]
["Congo (Congo-Brazzaville)"]
["Costa Rica"]
["Croatia"]
["Cuba"]
["Cyprus"]
["Czechia (Czech Republic)"]
["Democratic Republic of the Congo"]
["Denmark"]
["Djibouti"]
["Dominica"]
["Dominican Republic"]
["Ecuador"]
["Egypt"]
["El Salvador"]
["Equatorial Guinea"]
["Eritrea"]
["Estonia"]
["Eswatini (fmr. \"Swaziland\")"]
["Ethiopia"]
["Fiji"]
["Finland"]
["France"]
["Gabon"]
["Gambia"]
["Georgia"]
["Germany"]
["Ghana"]
["Greece"]
["Grenada"]
["Guatemala"]
["Guinea"]
["Guinea-Bissau"]
["Guyana"]
["Haiti"]
["Holy See"]
["Honduras"]
["Hungary"]
["Iceland"]
["India"]
["Indonesia"]
["Iran"]
["Iraq"]
["Ireland"]
["Israel"]
["Italy"]
["Jamaica"]
["Japan"]
["Jordan"]
["Kazakhstan"]
["Kenya"]
["Kiribati"]
["Kuwait"]
["Kyrgyzstan"]
["Laos"]
["Latvia"]
["Lebanon"]
["Lesotho"]
["Liberia"]
["Libya"]
["Liechtenstein"]
["Lithuania"]
["Luxembourg"]
["Madagascar"]
["Malawi"]
["Malaysia"]
["Maldives"]
["Mali"]
["Malta"]
["Marshall Islands"]
["Mauritania"]
["Mauritius"]
["Mexico"]
["Micronesia"]
["Moldova"]
["Monaco"]
["Mongolia"]
["Montenegro"]
["Morocco"]
["Mozambique"]
["Myanmar (formerly Burma)"]
["Namibia"]
["Nauru"]
["Nepal"]
["Netherlands"]
["New Zealand"]
["Nicaragua"]
["Niger"]
["Nigeria"]
["North Korea"]
["North Macedonia"]
["Norway"]
["Oman"]
["Pakistan"]
["Palau"]
["Palestine State"]
["Panama"]
["Papua New Guinea"]
["Paraguay"]
["Peru"]
["Philippines"]
["Poland"]
["Portugal"]
["Qatar"]
["Romania"]
["Russia"]
["Rwanda"]
["Saint Kitts and Nevis"]
["Saint Lucia"]
["Saint Vincent and the Grenadines"]
["Samoa"]
["San Marino"]
["Sao Tome and Principe"]
["Saudi Arabia"]
["Senegal"]
["Serbia"]
["Seychelles"]
["Sierra Leone"]
["Singapore"]
["Slovakia"]
["Slovenia"]
["Solomon Islands"]
["Somalia"]
["South Africa"]
["South Korea"]
["South Sudan"]
["Spain"]
["Sri Lanka"]
["Sudan"]
["Suriname"]
["Sweden"]
["Switzerland"]
["Syria"]
["Tajikistan"]
["Tanzania"]
["Thailand"]
["Timor-Leste"]
["Togo"]
["Tonga"]
["Trinidad and Tobago"]
["Tunisia"]
["Turkey"]
["Turkmenistan"]
["Tuvalu"]
["Uganda"]
["Ukraine"]
["United Arab Emirates"]
["United Kingdom"]
["United States of America"]
["Uruguay"]
["Uzbekistan"]
["Vanuatu"]
["Venezuela"]
["Vietnam"]
["Yemen"]
["Zambia"]
["Zimbabwe"]